[Event "21st Bangkok CC Open 2024"]
[Site "Bangkok"]
[Date "2024.04.18"]
[Round "6.7"]
[White "Harsh Suresh"]
[Black "Peng, Xiongjian"]
[Result "1-0"]
[ECO "C00"]
[WhiteElo "2413"]
[BlackElo "2521"]
[Annotator "TA"]
[PlyCount "95"]
[EventDate "2024.04.13"]
[EventType "swiss"]
[EventCountry "THA"]
[SourceTitle "playchess.com"]
[Source "ChessBase"]
[SourceQuality "1"]
[TimeControl "40/5400+30:1800+30"]

{[%evp 19,95,4,23,23,57,21,34,14,44,0,0,0,0,-38,-13,-27,-15,0,0,-32,0,-12,-3,-27,-19,-24,-25,-39,-12,-12,407,214,177,206,355,131,376,133,122,29,84,0,0,0,0,0,70,70,120,120,120,120,120,120,326,311,478,450,839,832,29958,29961,29950,29960,29945,29950,29946,29945,7122,773,675,624,29974,29975,29976,29977,29977,29972]} 1. e4 {[%emt 0:00:28]} c5 {[%emt 0:00:06]} 2. Nf3 {[%emt 0:00:12]} e6 {[%emt 0:02:13]} 3. d3 {[%emt 0:09:13]} Nc6 {[%emt 0:01:00]} 4. g3 {[%emt 0:00:20]} d5 {[%emt 0:00:25]} 5. Nbd2 {[%emt 0:00:15]} Nf6 {[%emt 0:03:08]} 6. Bg2 {[%emt 0:00:13]} Be7 {[%emt 0:00:06]} 7. O-O {[%emt 0:00:09]} O-O {[%emt 0:01:11]} 8. Re1 {[%emt 0:01:02]} b5 {[%emt 0:00:31]} 9. exd5 {[%emt 0:10:24]} exd5 {[%emt 0:03:12]} 10. d4 {[%emt 0:04:15]} c4 {[%emt 0:00:39]} 11. a4 {[%emt 0:00:46]} Rb8 {[%emt 0:05:25]} 12. axb5 {[%emt 0:00:32]} Rxb5 {[%emt 0:00:04]} 13. Nb1 {[%emt 1:09:11] White is slightly better.} Ne4 {[%emt 0:05:27]} 14. Nc3 {[%emt 0:00:00]} Nxc3 {[%emt 0:00:37]} 15. bxc3 {[%emt 0:00:00]} a5 {[%emt 0:06:45]} 16. Bf4 {[%emt 0:00:00]} Bd6 {[%emt 0:05:00]} 17. Qd2 {[%emt 0:00:00]} Bf5 {[%emt 0:02:04]} 18. Bxd6 {[%emt 0:00:00]} Qxd6 {[%emt 0:00:15]} 19. Ne5 {[%emt 0:00:00]} Ne7 {[%emt 0:05:11]} 20. Qe2 {[%emt 0:00:00][%cal Oe5c4]} Ng6 {[%emt 0:00:22]} 21. h4 {[%emt 0:00:00]} Nxe5 {[%emt 0:09:40]} 22. Qxe5 {[%emt 0:00:00]} Qd7 {[%emt 0:00:16]} 23. Ra2 {[%emt 0:00:00]} f6 {[%emt 0:01:42]} 24. Qe7 {[%emt 0:00:00] [#]} Rb1 $2 {[%emt 0:04:23][%mdl 8192]} 25. Qxf8+ {[%emt 0:00:00]} (25. Bxd5+ $142 Qxd5 26. Rxb1) 25... Kxf8 $18 {[%emt 0:00:05]} 26. Rxb1 {[%emt 0:00:00][%cal Oa2b2] And now Rab2! would win.} a4 {[%emt 0:00:43]} (26... h5 $142 27. Rxa5 Be4 28. Bxe4 dxe4) 27. Rb4 $2 {[%emt 0:00:00]} (27. Rab2 $18 Bg6 28. Rb8+ Be8 29. Ra8 (29. Re1 a3 $18)) 27... Kf7 $2 {[%emt 0:00:38] [#]} (27... h5 $16 28. Rbxa4 (28. Raxa4 Bxc2 29. Rb8+ Kf7 $16) 28... Kg8) 28. Rbxa4 $2 {[%emt 0:00:00]} (28. Raxa4 Kg6 $16) (28. h5 $1 $18 {and the rest is easy.} h6 29. Rbxa4 (29. Raxa4 Be4 $18)) 28... Kg6 $16 {[%emt 0:00:07]} 29. Ra5 {[%emt 0:00:59]} (29. Rb4 $16) 29... Be4 $11 {[%emt 0:02:45]} 30. Ra1 {[%emt 0:01:26]} (30. Bxe4+ $16 dxe4 31. Ra7) 30... Bxg2 $1 {[%emt 0:00:41]} 31. Kxg2 {[%emt 0:00:02][%mdl 4096] Endgame. KQ-KRR} Qe6 {[%emt 0:00:12] Against Re1} 32. Kf1 {[%emt 0:01:20]} Qe4 {[%emt 0:01:09]} ({Black should play} 32... Qh3+ $1 $11 33. Kg1 Qe6) 33. Re1 $1 $14 {[%emt 0:00:23] White now steadily converts the win.} Qh1+ {[%emt 0:04:37]} (33... Qxc2 $14 34. Re3 (34. Rxd5 Qxc3 35. Rd7 Qd2 $16) 34... Qb1+ 35. Kg2 Qb7) 34. Ke2 $16 {[%emt 0:00:04]} Qg2 {[%emt 0:00:06]} 35. Ra7 {[%emt 0:00:48] Black must now prevent Rb1.} h5 {[%emt 0:05:26]} 36. Re7 {[%emt 0:00:20]} Kf5 $2 {[%emt 0:00:15]} (36... Kh6 $16 {keeps fighting.} 37. Re3 Qh3) 37. Rb1 $18 {[%emt 0:01:51]} ({And not} 37. Rxg7 Qxf2+ 38. Kd1 Qxc2+ 39. Kxc2 $11) 37... g5 {[%emt 0:03:16]} (37... Kg6 $142 38. Ra1 Kh6) 38. hxg5 {[%emt 0:00:03]} fxg5 {[%emt 0:00:07]} (38... Kxg5 $142 39. Re3 h4) 39. Rb6 {[%emt 0:04:10]} h4 {[%emt 0:12:59]} 40. Rf7+ {[%emt 0:00:13]} Kg4 {[%emt 0:00:04]} 41. gxh4 {[%emt 0:30:08]} Qe4+ {[%emt 0:32:13]} 42. Kd2 {[%emt 0:01:20]} Qe8 {[%emt 0:00:10]} 43. Rg7 {[%emt 0:00:00]} Kxh4 {[%emt 0:00:00]} 44. Rh6+ {[%emt 0:00:00]} (44. Rb1 $142 Kg4 45. Rg1+ Kf3 46. R1xg5 (46. R7xg5 Kxf2 47. R5g2+ Kf3 $18) 46... Qe2+ 47. Kc1 Qe1+ 48. Kb2) 44... Kg4 {[%emt 0:00:00]} 45. Rhg6 {[%emt 0:00:00]} Qd8 {[%emt 0:00:00]} 46. Rxg5+ {[%emt 0:00:00] White mates.} Qxg5+ {[%emt 0:00:00]} 47. Rxg5+ {[%emt 0:00:00]} Kxg5 {[%emt 0:00:00]} 48. Ke3 {[%emt 0:00:00] Weighted Error Value: White=0.33/Black=0.69.  Loses game:     	---       	Black=3      Missed win:     	White=2     	---        Mistake:       	White=3     	Black=5      Inaccurate:     	White=4     	Black=4      OK:         	White=5     	Black=6      Best:        	White=2     	Black=2      Strong:       	White=1     	Black=1} 1-0

[Event "21st Bangkok CC Open 2024"]
[Site "Bangkok"]
[Date "2024.04.18"]
[Round "6.8"]
[White "Danilenko, Dmitriy"]
[Black "Das, Sayantan"]
[Result "1-0"]
[ECO "C01"]
[WhiteElo "2400"]
[BlackElo "2507"]
[Annotator "TA"]
[PlyCount "125"]
[EventDate "2024.04.13"]
[EventType "swiss"]
[EventCountry "THA"]
[SourceTitle "playchess.com"]
[Source "ChessBase"]
[SourceQuality "1"]
[TimeControl "40/5400+30:1800+30"]

{[%evp 47,125,-44,-43,-45,-2,-16,-9,-67,0,0,0,0,15,-40,-5,-30,-28,-25,-34,-21,8,0,212,140,144,119,247,71,212,164,540,230,243,253,263,259,237,197,283,276,277,277,313,314,317,314,312,272,278,259,270,265,420,432,443,439,425,421,445,440,797,751,1220,564,1254,1292,1381,1220,1145,1090,4622,3201,6447,5710,5410,5522,29985,29986,29987,29988]} 1. e4 {[%emt 0:00:09]} e6 {[%emt 0:00:59]} 2. d4 {[%emt 0:00:19]} d5 {[%emt 0:00:07]} 3. exd5 {[%emt 0:00:15]} exd5 {[%emt 0:00:11]} 4. Bf4 {[%emt 0:00:13]} Bd6 {[%emt 0:04:06]} 5. Qd2 {[%emt 0:00:10]} Nf6 {[%emt 0:02:23]} 6. Nc3 {[%emt 0:00:34]} O-O {[%emt 0:01:23] C01: French: Exchange Variation.} 7. O-O-O {[%emt 0:00:09]} Nc6 {[%emt 0:13:41]} 8. f3 {[%emt 0:02:19]} Be6 $146 {[%emt 0:03:55]} ({Predecessor:} 8... a6 9. Kb1 b5 10. g4 Na5 11. h4 Nc4 12. Bxc4 dxc4 13. g5 b4 14. gxf6 bxc3 15. bxc3 Qxf6 16. Bxd6 Qxd6 {½-½ Chigaev,M (2644)-Lenderman,A (2648) Chess24 Banter Blitz Cup 2019 (2.2)}) 9. g4 {[%emt 0:10:33]} Ne7 {[%emt 0:05:43]} 10. Bd3 {[%emt 0:16:34]} b6 {[%emt 0:07:22]} 11. h4 {[%emt 0:18:26]} c5 {[%emt 0:05:09]} 12. h5 {[%emt 0:11:19]} c4 {[%emt 0:13:04]} 13. Bf1 {[%emt 0:00:18]} Rb8 {[%emt 0:01:08]} 14. h6 {[%emt 0:11:33]} g6 {[%emt 0:01:01]} 15. Nb5 {[%emt 0:04:04]} Bxf4 {[%emt 0:07:22]} 16. Qxf4 {[%emt 0:00:01]} Ne8 {[%emt 0:05:11]} 17. Nh3 {[%emt 0:00:06]} a6 {[%emt 0:03:11]} 18. Nc3 {[%emt 0:00:09]} Qd6 {[%emt 0:06:15]} 19. Qe5 {[%emt 0:06:06]} Qxe5 {[%emt 0:04:06]} 20. dxe5 {[%emt 0:00:01]} Nc7 {[%emt 0:00:24]} 21. Nf4 {[%emt 0:01:18]} Rbd8 {[%emt 0:00:54]} 22. Bh3 {[%emt 0:07:07]} Nc6 {[%emt 0:01:42]} 23. Rhe1 {[%emt 0:00:27]} b5 {[%emt 0:02:00]} 24. Ng2 {[%emt 0:02:30]} g5 {[%emt 0:05:42]} 25. f4 {[%emt 0:02:19]} gxf4 {[%emt 0:00:05]} 26. Nxf4 {[%emt 0:00:03]} Kh8 {[%emt 0:00:28]} 27. Nh5 {[%emt 0:04:12]} (27. Nce2 $11) 27... b4 {[%emt 0:01:17]} (27... d4 $15 28. Ne2 Nxe5 29. Rxd4 (29. Nxd4 Bxg4 30. Bxg4 Nxg4 $11) 29... Nf3 30. Rxd8 Rxd8) 28. Na4 $11 {[%emt 0:01:11]} Rg8 {[%emt 0:00:20]} 29. Ng7 {[%emt 0:00:03]} Ne8 {[%emt 0:03:38]} 30. Nf5 {[%emt 0:00:04]} (30. Nxe6 $1 $11 fxe6 31. Rd2) 30... Rg5 {[%emt 0:00:34]} 31. Nc5 {[%emt 0:01:01]} Nc7 {[%emt 0:00:35]} 32. Nb7 {[%emt 0:01:17]} Rb8 {[%emt 0:00:51]} 33. Nbd6 {[%emt 0:00:42]} Rb6 {[%emt 0:00:17]} 34. Ng7 {[%emt 0:01:20]} Nxe5 $2 {[%emt 0:01:20]} (34... Bxg4 $2 35. Nxf7+ Kg8 36. Nxg5 $18) (34... Kg8 $1 $11) 35. Nxe6 {[%emt 0:00:23]} Nxe6 {[%emt 0:00:05]} (35... fxe6 $2 36. Rxe5 Rg6 37. Nf7+ Kg8 38. Rf1 $18) 36. Rxd5 {[%emt 0:00:29]} f6 {[%emt 0:01:09] [#]} (36... Nd3+ $16 37. Rxd3 (37. cxd3 $2 {perishes.} Rxd5 38. Nxc4 Rb8 $19) 37... cxd3 38. Nxf7+ Kg8 39. Nxg5 Nxg5) 37. Rdd1 $2 {[%emt 0:00:40]} (37. Bf1 $1 $18 {is more deadly.} Rc6 38. Rexe5 fxe5 39. Nf7+ (39. Nxc4 Nf4 $11) 39... Kg8 40. Nxg5 Nxg5 41. Rxe5) 37... Nf4 {[%emt 0:00:47]} (37... b3 $16 {was necessary.} 38. axb3 cxb3) 38. Bf1 {[%emt 0:00:30]} Rxg4 $2 {[%emt 0:00:33]} (38... Nfd3+ {is more resistant.} 39. cxd3 Rxd6) 39. Nxc4 {[%emt 0:00:23]} (39. Bxc4 $142 {White threatens Nf7+ and mate.} Nfd3+ 40. Rxd3 (40. cxd3 Rxd6 41. Kb1 Rg3 $14) 40... Nxd3+ 41. cxd3) 39... Rb8 $18 {[%emt 0:00:27]} 40. Nxe5 {[%emt 0:00:31]} fxe5 {[%emt 0:00:01]} 41. Rxe5 {[%emt 0:30:17]} Rg6 {[%emt 0:30:39]} 42. Rf5 {[%emt 0:00:00]} Ne6 {[%emt 0:00:00]} (42... Ng2 $142) 43. Bxa6 $18 {[%emt 0:00:00]} Rxh6 {[%emt 0:00:00]} 44. Bc4 {[%emt 0:00:00]} Rc8 {[%emt 0:00:00]} 45. b3 {[%emt 0:00:00]} Nc5 {[%emt 0:00:00]} 46. Rfd5 {[%emt 0:00:00]} Ne4 {[%emt 0:00:00]} 47. Kb2 {[%emt 0:03:55]} Rb6 {[%emt 0:00:00]} 48. a3 {[%emt 0:00:00]} bxa3+ {[%emt 0:00:00]} 49. Kxa3 {[%emt 0:00:00]} Nf6 {[%emt 0:00:00]} (49... Ra8+ $142 50. Kb2 Nf6) 50. Rd8+ $18 {[%emt 0:00:00]} Rxd8 {[%emt 0:00:00]} 51. Rxd8+ {[%emt 0:00:00]} Kg7 {[%emt 0:00:00]} 52. b4 {[%emt 0:00:00]} h5 {[%emt 0:00:00]} 53. b5 {[%emt 0:00:00]} Kh6 {[%emt 0:00:00]} (53... h4 $142 54. Rd4 h3) 54. Kb4 {[%emt 0:00:00]} h4 {[%emt 0:00:00]} 55. Ka5 {[%emt 0:00:00]} Rb7 {[%emt 0:00:00]} 56. b6 {[%emt 0:00:00]} Kg5 {[%emt 0:03:24]} 57. Be6 {[%emt 0:00:00]} Re7 {[%emt 0:00:21]} 58. Rd6 {[%emt 0:00:00]} Kf4 {[%emt 0:01:34]} 59. Bc8 {[%emt 0:00:00]} Re5+ {[%emt 0:02:06]} 60. Kb4 {[%emt 0:00:00]} Ne4 {[%emt 0:01:13]} 61. Rd4 {[%emt 0:00:00]} Ke3 {[%emt 0:01:23]} 62. Rd3+ {[%emt 0:00:00]} Ke2 {[%emt 0:00:26]} 63. b7 {[%emt 0:00:00]} 1-0

[Event "21st Bangkok CC Open 2024"]
[Site "Bangkok"]
[Date "2024.04.18"]
[Round "6.9"]
[White "Panda Sambit"]
[Black "Zhao, Zong-Yuan"]
[Result "0-1"]
[ECO "E97"]
[WhiteElo "2378"]
[BlackElo "2485"]
[Annotator "TA"]
[PlyCount "182"]
[EventDate "2024.04.13"]
[EventType "swiss"]
[EventCountry "THA"]
[SourceTitle "playchess.com"]
[Source "ChessBase"]
[SourceQuality "1"]
[TimeControl "40/5400+30:1800+30"]

{[%evp 57,181,-101,-81,-311,-280,-390,-365,-667,-402,-739,-724,-722,-419,-420,-417,-627,-375,-460,-450,-441,-352,-547,-389,-416,-416,-419,-375,-486,-416,-591,-518,-520,-399,-398,-393,-472,-471,-529,-454,-672,-676,-706,-557,-552,-543,-557,-561,-561,-558,-547,-522,-466,-466,-445,-389,-12850,-11974,-7763,-6887,-6880,-6880,-6753,-5615,-29946,-29947,-29947,-29947,-29949,-29949,-29950,-29948,-29968,-29969,-29968,-29969,-29968,-29970,-29969,-29971,-29971,-29972,-29974,-29974,-29976,-29977,-29977,-29978,-29978,-29979,-29979,-29980,-29980,-29981,-29981,-29980,-29982,-29974,-29983,-29984,-29987,-29986,-29988,-29987,-29989,-29990,-29990,-29990,-29991,-4145,-29992,-29992,-29992,-29992,-29993,-29994,-29994,-29995,-29995,-29996,-29996,-29997,-29997,-29998,-29998,-29999,-29999]} 1. d4 {[%emt 0:04:48]} Nf6 {[%emt 0:03:13]} 2. c4 {[%emt 0:00:09]} g6 {[%emt 0:00:20]} 3. Nc3 {[%emt 0:00:04]} Bg7 {[%emt 0:00:03]} 4. e4 {[%emt 0:00:02]} d6 {[%emt 0:00:04]} 5. Nf3 {[%emt 0:00:11]} O-O {[%emt 0:00:07]} 6. Be2 {[%emt 0:00:02]} e5 {[%emt 0:00:06]} 7. O-O {[%emt 0:00:04]} Nc6 {[%emt 0:00:02]} 8. d5 {[%emt 0:00:03]} Ne7 {[%emt 0:00:05]} 9. b4 {[%emt 0:00:01]} a5 {[%emt 0:02:33]} 10. Ba3 {[%emt 0:00:07]} b6 {[%emt 0:12:58]} 11. bxa5 {[%emt 0:00:45]} Rxa5 {[%emt 0:07:45]} 12. Bb4 {[%emt 0:00:06]} Ra8 {[%emt 0:00:07]} 13. a4 {[%emt 0:00:05]} Ne8 {[%emt 0:05:43]} 14. h3 {[%emt 0:00:05] E97: King's Indian: Classical Main Line (6...e5 7 0-0 Nc6): 8 Be3 and 8 d5 Ne7, not 9 Ne1.} Bd7 {[%emt 0:09:34]} 15. Re1 $146 {[%emt 0:22:11]} ({Predecessor:} 15. Bd3 f5 16. Re1 f4 17. Be2 Bf6 18. a5 bxa5 19. Bxa5 g5 20. Nd2 Ng6 21. Bg4 Ng7 22. Bxd7 Qxd7 {½-½ Cox,J (2263)-Abhyuday,S (2167) BCF-chT2 2324 (4NCL) 2023 (5.34)}) 15... Kh8 {[%emt 0:10:13]} 16. Qb3 {[%emt 0:42:43]} Rb8 {[%emt 0:12:32]} 17. Qa3 {[%emt 0:02:59]} Ra8 {[%emt 0:05:32]} 18. Qb2 {[%emt 0:06:55]} Rb8 {[%emt 0:01:49]} 19. Ra3 {[%emt 0:10:24]} f5 {[%emt 0:01:03]} 20. Rd1 {[%emt 0:01:48]} Nf6 {[%emt 0:03:00]} 21. Nd2 {[%emt 0:00:18]} g5 {[%emt 0:02:20]} 22. exf5 {[%emt 0:00:40]} Bxf5 {[%emt 0:00:31]} 23. Nb5 {[%emt 0:01:26]} Ng6 {[%emt 0:02:15]} 24. a5 {[%emt 0:02:12]} Nf4 {[%emt 0:00:23]} 25. Bf1 {[%emt 0:00:03]} bxa5 {[%emt 0:11:32]} 26. Bxa5 {[%emt 0:00:05]} Qd7 {[%emt 0:04:59]} 27. Rb3 {[%emt 0:00:34]} Rb7 {[%emt 0:00:51]} 28. c5 {[%emt 0:04:03]} N6xd5 {[%emt 0:01:05]} 29. cxd6 {[%emt 0:00:46]} cxd6 {[%emt 0:00:35]} 30. Qa3 $2 {[%emt 0:01:06]} (30. Nc4 $17 {was worth a try.}) 30... Bc2 $19 {[%emt 0:00:29]} 31. Rdb1 {[%emt 0:00:38]} Rfb8 {[%emt 0:01:56]} 32. Nc4 $2 {[%emt 0:00:34]} (32. Nc3 Bxb3 33. Rxb3 Rxb3 34. Nxb3) 32... Bxb3 {[%emt 0:00:31]} 33. Ncxd6 {[%emt 0:00:06]} (33. Rxb3 $142 Rxb5 34. Qa4) 33... Bc2 $19 {[%emt 0:00:45]} 34. Rc1 {[%emt 0:00:22]} Bg6 {[%emt 0:00:14]} 35. Nxb7 {[%emt 0:00:51]} Qxb7 {[%emt 0:00:06]} ({Much less strong is} 35... Rxb7 36. g3 Nxh3+ 37. Bxh3 Qxh3 38. Qd6) 36. Qc5 {[%emt 0:00:30]} (36. Bd2 $142) 36... Qe7 {[%emt 0:02:03]} 37. Qc4 {[%emt 0:00:18]} Bf7 {[%emt 0:00:30]} 38. Qe4 {[%emt 0:00:28]} Nf6 {[%emt 0:00:32]} ({But not} 38... Bg6 39. Qc4 $19) 39. Qf5 {[%emt 0:00:22]} (39. Qc6 $142) 39... h6 {[%emt 0:00:27]} 40. Bc7 {[%emt 0:00:52]} Re8 {[%emt 0:00:46]} 41. Qc2 {[%emt 0:02:25]} Bg6 {[%emt 0:00:55]} 42. Qc4 {[%emt 0:01:08]} e4 {[%emt 0:01:01]} 43. Nd6 {[%emt 0:01:40]} (43. Bd6 $142 Qd7 44. Qc7) 43... Rf8 {[%emt 0:00:48]} 44. Nb5 {[%emt 0:01:30]} Qf7 {[%emt 0:04:51]} 45. Qxf7 {[%emt 0:01:57]} Rxf7 {[%emt 0:00:35]} 46. Nd6 {[%emt 0:00:23]} Rf8 {[%emt 0:00:24]} 47. Ba5 {[%emt 0:03:04]} Nd3 {[%emt 0:00:35]} 48. Rc2 {[%emt 0:01:59]} (48. Rd1 $142) 48... Nd5 $19 {[%emt 0:01:06]} 49. Rd2 {[%emt 0:00:05]} Bd4 {[%emt 0:01:26]} 50. Nxe4 {[%emt 0:00:09]} Bxe4 {[%emt 0:00:09]} 51. Bxd3 {[%emt 0:00:06]} Rxf2 {[%emt 0:00:14]} 52. Rxf2 {[%emt 0:00:06]} Bxd3 {[%emt 0:00:10]} 53. Be1 {[%emt 0:00:04]} Kg7 {[%emt 0:05:30]} 54. Kh2 {[%emt 0:00:13]} Bxf2 {[%emt 0:00:05]} 55. Bxf2 {[%emt 0:00:04]} Kg6 {[%emt 0:00:53]} 56. g4 $2 {[%emt 0:01:15]} (56. Be1) 56... Nf4 {[%emt 0:00:39]} 57. Kg3 {[%emt 0:00:21]} Be4 {[%emt 0:00:08]} 58. Be3 {[%emt 0:00:34]} Ne6 {[%emt 0:00:33]} 59. h4 {[%emt 0:02:24]} Bc2 {[%emt 0:00:15]} 60. hxg5 {[%emt 0:00:28]} hxg5 {[%emt 0:00:12]} 61. Bd2 {[%emt 0:00:17]} Bd1 {[%emt 0:00:05]} 62. Bc1 {[%emt 0:00:03]} Ng7 {[%emt 0:00:16]} 63. Bd2 {[%emt 0:02:51]} Ne8 {[%emt 0:00:17]} 64. Bxg5 {[%emt 0:00:05]} Kxg5 {[%emt 0:00:04]} 65. Kf2 {[%emt 0:00:03]} Nd6 {[%emt 0:00:14]} 66. Ke3 {[%emt 0:00:05]} Bxg4 {[%emt 0:00:32]} 67. Kd4 {[%emt 0:00:05]} Kf4 {[%emt 0:00:16]} 68. Kd3 {[%emt 0:00:11]} Ne4 {[%emt 0:00:14]} 69. Kc2 {[%emt 0:00:07]} Ke3 {[%emt 0:00:12]} 70. Kc1 {[%emt 0:00:18]} Kd3 {[%emt 0:00:17]} 71. Kb2 {[%emt 0:00:05]} Nc5 {[%emt 0:00:34]} 72. Ka3 {[%emt 0:00:09]} Kc3 {[%emt 0:00:06]} 73. Ka2 {[%emt 0:00:03]} Nb3 {[%emt 0:00:20]} 74. Kb1 {[%emt 0:00:08]} Bf5+ {[%emt 0:00:04]} 75. Ka2 {[%emt 0:00:03]} Be4 {[%emt 0:00:04]} 76. Ka3 {[%emt 0:00:02]} Bb1 {[%emt 0:00:04]} 77. Ka4 {[%emt 0:00:03]} Nd4 {[%emt 0:00:43]} 78. Ka3 {[%emt 0:00:07]} Nb5+ {[%emt 0:00:10]} 79. Ka4 {[%emt 0:00:07]} Kc4 {[%emt 0:00:05]} 80. Ka5 {[%emt 0:00:03]} Kc5 {[%emt 0:00:11]} 81. Ka4 {[%emt 0:00:02]} Bc2+ {[%emt 0:00:04]} 82. Ka5 {[%emt 0:00:03]} Nd6 {[%emt 0:01:06]} 83. Ka6 {[%emt 0:00:04]} Bd1 {[%emt 0:00:15]} 84. Ka5 {[%emt 0:00:04]} Nb7+ {[%emt 0:00:05]} 85. Ka6 {[%emt 0:00:04]} Kc6 {[%emt 0:00:10]} 86. Ka7 {[%emt 0:00:02]} Kc7 {[%emt 0:00:20]} 87. Ka8 {[%emt 0:00:04]} Be2 {[%emt 0:00:19]} 88. Ka7 {[%emt 0:00:04]} Nd6 {[%emt 0:00:09]} 89. Ka8 {[%emt 0:00:02]} Bd3 {[%emt 0:00:14]} 90. Ka7 {[%emt 0:00:03]} Nc8+ {[%emt 0:00:04]} 91. Ka8 {[%emt 0:00:03]} Be4# {[%emt 0:00:03]} 0-1

[Event "21st Bangkok CC Open 2024"]
[Site "Bangkok"]
[Date "2024.04.18"]
[Round "6.10"]
[White "Srihari L R"]
[Black "Arfan, Aditya Bagus"]
[Result "1/2-1/2"]
[ECO "A11"]
[WhiteElo "2482"]
[BlackElo "2407"]
[Annotator "TA"]
[PlyCount "72"]
[EventDate "2024.04.13"]
[EventType "swiss"]
[EventCountry "THA"]
[SourceTitle "playchess.com"]
[Source "ChessBase"]
[SourceQuality "1"]
[TimeControl "40/5400+30:1800+30"]

{[%evp 10,72,22,24,33,22,27,25,38,1,29,10,14,14,8,14,8,-64,-57,-60,-39,-78,-66,-68,-18,-20,26,16,14,25,8,12,39,35,8,0,11,7,32,36,47,39,62,56,60,10,9,8,10,0,0,0,0,0,0,0,0,0,0,0,0,0,5,0,0]} 1. c4 {[%emt 0:01:27]} c6 {[%emt 0:01:03]} 2. g3 {[%emt 0:00:42]} d5 {[%emt 0:01:18]} 3. Nf3 {[%emt 0:00:19]} Nf6 {[%emt 0:01:39]} 4. Bg2 {[%emt 0:00:51]} Bf5 {[%emt 0:06:40]} 5. Qb3 {[%emt 0:00:39]} Qb6 {[%emt 0:02:28]} 6. d3 {[%emt 0:01:21]} e6 {[%emt 0:01:08]} 7. Be3 {[%emt 0:00:11]} Qxb3 {[%emt 0:02:35]} 8. axb3 {[%emt 0:03:54]} a6 {[%emt 0:00:41] White has an edge.} 9. Bd4 {[%emt 0:00:35]} Nbd7 {[%emt 0:06:03]} 10. Bc3 {[%emt 0:03:46]} h6 {[%emt 0:05:52]} 11. Nbd2 {[%emt 0:10:08]} Bh7 {[%emt 0:09:25]} 12. b4 {[%emt 0:04:50]} Bd6 {[%emt 0:06:42] [#]} 13. e4 {[%emt 0:27:11]} dxe4 $15 {[%emt 0:17:06]} 14. dxe4 {[%emt 0:00:01]} Bxe4 {[%emt 0:05:04]} 15. c5 {[%emt 0:04:23][%cal Od2e4] Black must now prevent Nxe4!} Bxf3 {[%emt 0:04:13]} 16. Bxf3 {[%emt 0:02:56]} Be7 {[%emt 0:09:47]} (16... Be5 $15) 17. b5 $11 {[%emt 0:00:41]} Nd5 {[%emt 0:02:20]} (17... O-O {deserves consideration.} 18. bxc6 bxc6) 18. bxc6 {[%emt 0:07:17]} bxc6 {[%emt 0:00:17]} 19. Bxg7 {[%emt 0:00:20] A strong pair of Bishops.} Rh7 {[%emt 0:01:48]} 20. Bd4 {[%emt 0:01:20]} Bxc5 {[%emt 0:01:12]} 21. Bxc5 {[%emt 0:02:09]} Nxc5 {[%emt 0:00:03]} 22. O-O {[%emt 0:05:32]} Kd7 {[%emt 0:03:00]} 23. Ra3 {[%emt 0:07:49][%mdl 1024] White has compensation.} Kc7 {[%emt 0:09:48]} 24. Rc1 {[%emt 0:00:28]} Nd7 {[%emt 0:01:00]} 25. Nc4 {[%emt 0:00:35]} Rhh8 {[%emt 0:00:48]} 26. Na5 {[%emt 0:00:45][%cal Of3d5] Threatens to win with Bxd5!} c5 {[%emt 0:00:55] [#]} 27. b4 {[%emt 0:00:49]} Rhb8 {[%emt 0:00:31] The position is equal.} 28. bxc5 {[%emt 0:01:04]} Rb5 {[%emt 0:00:05]} 29. Nb3 {[%emt 0:04:31]} Rab8 {[%emt 0:00:33]} 30. Bxd5 {[%emt 0:02:20]} exd5 {[%emt 0:00:02]} 31. c6 {[%emt 0:02:22]} Rxb3 {[%emt 0:00:55]} 32. cxd7+ {[%emt 0:00:05]} Kxd7 {[%emt 0:00:03]} 33. Rxa6 {[%emt 0:00:10]} R8b6 {[%emt 0:00:43] Dodges Rc6} 34. Ra7+ {[%emt 0:00:25]} Rb7 {[%emt 0:00:32]} 35. Ra6 {[%emt 0:01:08]} R3b6 {[%emt 0:00:30]} 36. Ra4 {[%emt 0:01:07]} Rb4 {[%emt 0:00:25] Weighted Error Value: White=0.11 (very precise) /Black=0.09 (flawless) .  Mistake:       	White=2     	Black=2      Inaccurate:     	White=2     	Black=1      OK:         	White=8     	Black=12     Best:        	White=3     	Black=1} 1/2-1/2

[Event "21st Bangkok CC Open 2024"]
[Site "Bangkok"]
[Date "2024.04.19"]
[Round "7.1"]
[White "Urazayev, Arystanbek"]
[Black "Bernadskiy, Vitaliy"]
[Result "1/2-1/2"]
[ECO "C01"]
[WhiteElo "2471"]
[BlackElo "2561"]
[Annotator "TA"]
[PlyCount "21"]
[EventDate "2024.04.13"]
[EventType "swiss"]
[EventCountry "THA"]
[SourceTitle "playchess.com"]
[Source "ChessBase"]
[SourceQuality "1"]
[TimeControl "40/5400+30:1800+30"]

{[%evp 10,21,16,16,16,20,16,-10,12,0,0,8,0,5]} 1. e4 {[%emt 0:06:12]} e6 {[%emt 0:00:04]} 2. d4 {[%emt 0:00:40]} d5 {[%emt 0:00:06]} 3. Nc3 {[%emt 0:00:03]} Bb4 {[%emt 0:01:09]} 4. exd5 {[%emt 0:00:06]} exd5 {[%emt 0:00:05]} 5. Bd3 {[%emt 0:00:11]} Nc6 {[%emt 0:03:55]} 6. a3 {[%emt 0:00:32] The position is equal.} Ba5 {[%emt 0:00:42]} 7. Nf3 {[%emt 0:02:31]} Bg4 {[%emt 0:01:13]} 8. Be3 {[%emt 0:04:37]} Nge7 {[%emt 0:01:47]} 9. h3 {[%emt 0:02:02]} Bh5 {[%emt 0:04:29]} 10. O-O {[%emt 0:02:51]} Bxc3 {[%emt 0:04:12]} 11. bxc3 {[%emt 0:01:18] A rather calm draw.   Weighted Error Value: White=0.08 (flawless) /Black=0.04 (flawless) .  Inaccurate:     	White=1     	---        OK:         	White=1     	Black=3} 1/2-1/2